Cogmind - Beta 13 @@@ ROGUE MODE // 2024.04.28 @ 22:38:31 Player: peko Result: Destroyed by S-10 Pest with Light Assault Rifle Performance ------------- Evolutions (1) 500 Regions Visited (4) 800 Robots Destroyed (47) 235 Value Destroyed (885) 885 Prototype IDs (1) 20 Alien Tech Used (0) 0 Bonus (89) 89 TOTAL SCORE: 2529 Bonus ------- High Alert Combat Kills 22 Follower Combat Kills 201 Friendly Fire -134 Cogmind --------- Core Integrity 0/400 Matter 256/300 Energy 48/100 System Corruption 0% Temperature Hot (249) Movement Hovering (80) Location -9/Storage Parts ------- > --- POWER (1) -------- (None) > --- PROPULSION (3) --- Combat Airjet > --- UTILITY (3) ------ Small Storage Unit Terrain Scan Processor > --- WEAPON (2) ------- Spread Laser > --- INVENTORY (8) ---- Visual Processing Unit Launcher Guidance Computer ECM Suite Drone Bay (2/2) Drone Bay (2/2) Drone Bay (2/2) Drone Bay (2/2) Peak State ------------ > --- POWER ------------ Light Nuclear Core > --- PROPULSION ------- Combat Airjet Combat Airjet > --- UTILITY ---------- Small Storage Unit Experimental Sensor Array Terrain Scan Processor > --- WEAPON ----------- Particle Gun Improved Light Cannon > --- INVENTORY -------- Light Ion Engine Improved Heat Sink Visual Processing Unit Visual Processing Unit Visual Processing Unit Visual Processing Unit Launcher Guidance Computer ECM Suite [Rating: 30] Favorites ----------- Power Light Ion Engine Engine Light Ion Engine Power Core Light Nuclear Core Propulsion Combat Airjet Leg Aluminum Leg Hover Unit Combat Airjet Utility Small Storage Unit Device ECM Suite Storage Small Storage Unit Processor Terrain Scan Processor Weapon Medium Laser Energy Gun Medium Laser Ballistic Gun Light Assault Rifle Ballistic Cannon Improved Light Cannon Build | -11 -10 -10 -9 -9 ------- Run | Yrd Mat Min Mat Sto Slots Evolved 2 | . . . 2 . Power . | . . . . . Propulsion 1 | . . . 1 . Utility 1 | . . . 1 . Weapon . | . . . . . Parts Attached 28 | 6 7 4 4 7 Power 5 | 1 2 1 1 . Engine 4 | 1 2 1 . . Core 1 | . . . 1 . Reactor . | . . . . . Propulsion 6 | 2 2 2 . . Treads . | . . . . . Leg 4 | 2 2 . . . Wheel . | . . . . . Hover 2 | . . 2 . . Flight . | . . . . . Utility 7 | 1 1 1 2 2 Device 5 | . 1 1 1 2 Storage 1 | 1 . . . . Processor 1 | . . . 1 . Hackware . | . . . . . Protection . | . . . . . Artifact . | . . . . . Weapon 10 | 2 2 . 1 5 Energy Gun 5 | 2 1 . . 2 Energy Cannon . | . . . . . Ballistic Gun 1 | . 1 . . . Ballistic Cannon 4 | . . . 1 3 Launcher . | . . . . . Special Weapon . | . . . . . Impact Weapon . | . . . . . Slashing Weapon . | . . . . . Piercing Weapon . | . . . . . Special Melee Weapon . | . . . . . Unidentified Prototypes 1 | . . 1 . . Parts Lost 9 | . . 2 . 7 Power 2 | . . 1 . 1 Propulsion 1 | . . . . 1 Utility 3 | . . . . 3 Weapon 3 | . . 1 . 2 Highest Loss Streak 5 | . . 2 . 5 To Critical Strikes . | . . . . . Average Slot Usage (%) 88 | . 93 89 82 85 Engine 8 | . 14 13 3 . Core 3 | . . . 7 10 Leg 9 | . 28 4 . . Hover 16 | . . 23 22 21 Device 11 | . 8 14 13 10 Storage 12 | . 14 14 11 11 Processor 4 | . . . 8 11 Energy Gun 15 | . 21 18 11 10 Ballistic Gun 1 | . 6 . . . Ballistic Cannon 3 | . . . 5 10 Naked Turns . | . . . . . Heaviest Build 23 | 12 16 16 17 23 Greatest Support 24 | 20 20 24 24 24 Greatest Overweight (x) 1 | . . 1 . 1 Average Overweight (x) . | . . . . . Largest Inventory Capacity 8 | 8 8 8 8 8 Average Capacity 7 | 6 8 8 8 8 Most Carried 8 | 5 6 7 8 8 Average Carried 5 | . 3 5 6 7 Final Capacity 8 | 8 8 8 8 8 Final Carried 8 | . 4 6 8 7 Class Distribution -------------------- 76% | Mutant 23% | Scavenger-Mutant Dominant Class ---------------- Mutant | -10/Materials Mutant | -10/Mines Mutant | -9/Materials Scavenger-Mutant | -9/Storage Resources | -11 -10 -10 -9 -9 ----------- Run | Yrd Mat Min Mat Sto Matter Collected 782 | 218 146 49 98 271 Remotely . | . . . . . Salvage Created 1405 | . 316 54 220 815 Parts 103 | . 28 6 17 52 Haulers Intercepted 1 | . . . 1 . Recyclers Shooed 4 | . 1 . 1 2 Parts Field Recycled . | . . . . . Retrieved Matter . | . . . . . Parts Self-Destructed . | . . . . . Prevented . | . . . . . Kills | -11 -10 -10 -9 -9 ------- Run | Yrd Mat Min Mat Sto Combat Hostiles Destroyed 27 | . 11 3 4 9 Guns 19 | . 11 3 2 3 Cannons 8 | . . . 2 6 Classes Destroyed 9 | . 4 . 3 2 Worker 9 | . 1 1 . 7 Builder 4 | . . . 1 3 Hauler 1 | . . . 1 . Recycler 2 | . . . . 2 Operator 2 | . 1 . 1 . Watcher 1 | . . . . 1 Swarmer 11 | . 6 3 . 2 Grunt 10 | . 5 . 2 3 Sentry 7 | . . . 2 5 Best Kill Streak 5 | . 3 3 3 5 Combat Bots Only 3 | . 3 3 2 2 Max Kills in Single Turn 2 | . 2 1 1 1 Gunslinging 1 | . 1 . . . Exploded . | . . . . . Melee . | . . . . . Uniques/NPCs Destroyed . | . . . . . Combat | -11 -10 -10 -9 -9 -------- Run | Yrd Mat Min Mat Sto Hostile Shots Fired 223 | . 45 18 24 136 Missed 65 | . 12 2 11 40 Damage Taken 1952 | . 474 196 164 1118 Core 568 | . 94 71 88 315 Absorbed by Shields . | . . . . . Core Remaining (%) 67 | 100 . 34 . . Volleys Fired 167 | 1 33 25 26 82 Largest 2 | 2 2 2 2 2 Hottest 104 | 90 90 90 89 104 Shots Fired 275 | 2 65 31 38 139 Gun 193 | 2 65 31 26 69 Cannon 82 | . . . 12 70 Launcher . | . . . . . Special . | . . . . . Kinetic 97 | . 15 . 12 70 Thermal 152 | 1 32 24 26 69 Explosive . | . . . . . Electromagnetic 26 | 1 18 7 . . Robot Hit Streak 14 | 2 9 14 7 6 Robot Miss Streak 9 | . 3 3 2 9 Penetration Max . | . . . . . Secondary Targets 1 | . 1 . . . Max Gunslinging Chain 1 | . 1 . . . Shots Hit Robots 147 | 2 36 18 28 63 Core Hits 79 | 1 19 9 12 38 Critical Kills . | . . . . . Critical Parts Destroyed . | . . . . . Critical Strikes 9 | . 1 1 3 4 Burn 6 | . 1 1 3 1 Blast 3 | . . . . 3 Melee Attacks . | . . . . . Impact . | . . . . . Slashing . | . . . . . Piercing . | . . . . . Sneak Attacks . | . . . . . Combat Hostiles . | . . . . . Follow-up Attacks . | . . . . . Damage Inflicted 2366 | 25 427 235 433 1246 Guns 1453 | 25 427 235 228 538 Cannons 913 | . . . 205 708 Explosions . | . . . . . Melee . | . . . . . Ramming . | . . . . . Kinetic 990 | . 77 . 205 708 Thermal 1152 | 12 211 163 228 538 Explosive . | . . . . . Electromagnetic 224 | 13 139 72 . . Impact . | . . . . . Slashing . | . . . . . Piercing . | . . . . . Highest Corruption 2 | . 2 2 . . Average Corruption 2 | . 2 2 . . Corruption Purged . | . . . . . Corruption Blocked . | . . . . . Effects 14 | . 6 8 . . Message Errors 3 | . 2 1 . . Matter Fused 4 | . 2 2 . . Heat Flow Errors 3 | . 1 2 . . Energy Discharges 1 | . . 1 . . Data Loss (minor) 2 | . 1 1 . . Weapon Failures 1 | . . 1 . . Overload Shots . | . . . . . Overflow Damage 6 | . . . . 6 Projectiles 6 | . . . . 6 Explosions . | . . . . . Melee . | . . . . . Knockbacks 9 | . . . 2 7 Impact . | . . . . . Kinetic 9 | . . . 2 7 Secondary . | . . . . . Self-Inflicted Damage 100 | . 100 . . . Shots 3 | . 3 . . . Rammed . | . . . . . Targets Rammed . | . . . . . Kicked . | . . . . . Crushed . | . . . . . Highest Temperature 355 | 30 231 295 139 355 Average Temperature 94 | 18 61 98 40 121 Received Heat Transfer 588 | . 126 27 63 372 Effects 7 | . . . . 7 Shutdowns 1 | . . . . 1 Energy Bleed 1 | . . . . 1 Interference 3 | . . . . 3 Short Circuit 1 | . . . . 1 Damage (minor) 1 | . . . . 1 Siege Activations . | . . . . . Robots Corrupted . | . . . . . Combat Hostiles . | . . . . . Parts Fried . | . . . . . Impact Corruptions . | . . . . . Robots Melted . | . . . . . Combat Hostiles . | . . . . . Parts Melted 2 | . 2 . . . Heat Transferred 3430 | 37 703 555 888 1247 Parts Sabotaged . | . . . . . Parts Stolen . | . . . . . Parts Stripped . | . . . . . Power Chain Reactions 1 | . 1 . . . Alert | -11 -10 -10 -9 -9 ------- Run | Yrd Mat Min Mat Sto Peak Influence 501 | . 275 131 361 501 Initial 152 | . . 61 . 152 Average 170 | . 119 66 221 340 Maximum Alert Level 2 | . 1 . 1 2 Low Security (%) 63 | 100 78 100 38 14 Level 1 29 | . 21 . 61 55 Level 2 6 | . . . . 29 Level 3 . | . . . . . Level 4 . | . . . . . Level 5 . | . . . . . High Security . | . . . . . Max Security . | . . . . . Squads Dispatched 6 | . 3 . 1 2 Investigation 1 | . 1 . . . Extermination . | . . . . . Reinforcement 4 | . 2 . 1 1 Assault . | . . . . . Garrison 1 | . . . . 1 Intercept . | . . . . . Searches Triggered . | . . . . . Construction Impeded . | . . . . . Haulers Reinforced . | . . . . . Active Scanning Responses . | . . . . . Cargo Convoy Interrupts . | . . . . . Stealth | -11 -10 -10 -9 -9 --------- Run | Yrd Mat Min Mat Sto Distress Signals 4 | . . . 1 3 Communications Jammed . | . . . . . Distress Signals . | . . . . . Times Spotted 54 | . 15 9 12 18 Peak Tracking Total 6 | . 3 4 3 6 Tactical Retreats 6 | . 3 2 1 . Traps | -11 -10 -10 -9 -9 ------- Run | Yrd Mat Min Mat Sto Traps Triggered 3 | . 3 . . . Indirectly . | . . . . . Trap Hack Attempts . | . . . . . Triggered . | . . . . . Disarmed . | . . . . . Reprogrammed . | . . . . . Reused . | . . . . . Traps Extracted . | . . . . . Installed . | . . . . . Triggered . | . . . . . Machines | -11 -10 -10 -9 -9 ---------- Run | Yrd Mat Min Mat Sto Machines Disabled 5 | . 3 . . 2 Max in Single Turn 3 | . 3 . . 1 Machines Repaired . | . . . . . Machines Dismantled . | . . . . . Machines Sabotaged . | . . . . . Overloaded Fab Kills . | . . . . . Hacking | -11 -10 -10 -9 -9 --------- Run | Yrd Mat Min Mat Sto Machines Accessed 6 | . 1 1 1 3 Terminals 5 | . 1 1 1 2 Fabricators . | . . . . . Repair Stations . | . . . . . Recycling Units . | . . . . . Scanalyzers . | . . . . . Garrison Access 1 | . . . . 1 Total Hacks 12 | . 2 2 3 5 Successful 3 | . . . 1 2 Failed 9 | . 2 2 2 3 Catastrophic 3 | . 1 . 1 1 Database Lockouts . | . . . . . Manual 9 | . . 5 . 4 Terminals 11 | . 2 2 3 4 Fabricators . | . . . . . Repair Stations . | . . . . . Recycling Units . | . . . . . Scanalyzers . | . . . . . Garrison Access 1 | . . . . 1 Terminal Hacks 2 | . . . 1 1 Open Door 1 | . . . . 1 Alert Level 1 | . . . 1 . Fabricator Hacks . | . . . . . Repair Station Hacks . | . . . . . Recycling Unit Hacks . | . . . . . Scanalyzer . | . . . . . Garrison Access Hacks 1 | . . . . 1 Unlock Access 1 | . . . . 1 Unauthorized Hacks . | . . . . . Terminals . | . . . . . Fabricators . | . . . . . Repair Stations . | . . . . . Recycling Units . | . . . . . Scanalyzers . | . . . . . Garrison Access . | . . . . . Data Cores Recovered 1 | . . . 1 . Used . | . . . . . Hacking Detections 7 | . 1 1 1 4 Full Trace Events 5 | . 1 1 1 2 Feedback Events . | . . . . . Feedback Blocked . | . . . . . Robot Schematics Acquired . | . . . . . Robots Built . | . . . . . Authchips . | . . . . . Time . | . . . . . Total Robot Build Rating . | . . . . . Part Schematics Acquired . | . . . . . Parts Built . | . . . . . Authchips . | . . . . . Time . | . . . . . Total Part Build Rating . | . . . . . Parts Repaired . | . . . . . Time . | . . . . . Parts Recycled . | . . . . . Recycled Matter . | . . . . . Retrieved Matter . | . . . . . Retrieved Components . | . . . . . Parts Scanalyzed . | . . . . . Part Schematics Acquired . | . . . . . Parts Damaged . | . . . . . Bothacking | -11 -10 -10 -9 -9 ------------ Run | Yrd Mat Min Mat Sto Used RIF Installer . | . . . . . Robots Hacked . | . . . . . Non-combat . | . . . . . Combat . | . . . . . Robot Hacks Applied . | . . . . . Relay Couplers Released . | . . . . . Fabnet Peak Effective % . | . . . . . Robots Rewired . | . . . . . Allies Hacked . | . . . . . Hacks Repelled . | . . . . . Allies | -11 -10 -10 -9 -9 -------- Run | Yrd Mat Min Mat Sto Total Allies 5 | . . 5 . . Largest Group 5 | . . 5 4 1 Highest-Rated Group 81 | . . 81 71 16 Highest-Rated Ally 31 | . . 31 31 16 Total Orders . | . . . . . Ally Attacks 41 | . . . 38 3 Total Damage 419 | . . . 389 30 Kills 8 | . . . 8 . Allies Corrupted . | . . . . . Allies Melted . | . . . . . Intel | -11 -10 -10 -9 -9 ------- Run | Yrd Mat Min Mat Sto Robot Analysis Total . | . . . . . Derelict Logs Recovered . | . . . . . Drone Launches 2 | . . . . 2 Drone Recoveries 2 | . . . . 2 Exploration | -11 -10 -10 -9 -9 ------------- Run | Yrd Mat Min Mat Sto Turns Passed 2033 | 62 556 582 354 479 Spaces Moved 1489 | 54 360 517 260 298 Core 25 | 25 . . . . Treads . | . . . . . Legs 436 | 29 360 47 . . Wheels . | . . . . . Hover 1028 | . . 470 260 298 Flight . | . . . . . Fastest Speed 50 | 50 120 77 77 77 Average Speed 93 | 87 120 91 77 78 Slowest Speed 150 | 120 120 150 77 150 Overloaded Moves . | . . . . . Propulsion Burnouts . | . . . . . Robots Hopped . | . . . . . Cave-ins Triggered . | . . . . . Exploration Rate (%) 44 | 4 52 85 28 52 Regions Visited 4 Branch Regions 2 Pre-discovered Areas . | . . . . . Known Exits Taken . | . . . . . Unknown Exits Taken 4 | 1 1 1 1 . Scrap Searched 2 | . . 2 . . Spaces Dug . | . . . . . Terrain Destroyed 5 | . 2 . . 3 Melee . | . . . . . Projectile 3 | . . . . 3 AOE 2 | . 2 . . . Terrain Rammed . | . . . . . Walls Destroyed . | . . . . . Machines Disabled . | . . . . . Actions | -11 -10 -10 -9 -9 --------- Run | Yrd Mat Min Mat Sto Total 1863 | 66 422 593 375 407 Wait 134 | . 6 41 81 6 Move 1485 | 53 359 516 259 298 Hop . | . . . . . Pick Up 32 | 6 11 5 4 6 Fast Attach 3 | . . . . 3 Attach 12 | 6 1 1 3 1 Detach 1 | . . . 1 . Swap 13 | . 6 3 1 3 Drop 16 | . 6 2 . 8 Fire 167 | 1 33 25 26 82 Melee . | . . . . . Ram . | . . . . . Kick . | . . . . . Crush . | . . . . . Escape Stasis . | . . . . . Rewire . | . . . . . Trap . | . . . . . Miscellaneous . | . . . . . Route ------- -11/Scrapyard -10/Materials (discovered 2 exits: *Mat / *Min) -10/Mines (discovered 2 exits: *Mat x2) -9/Materials (discovered 3 exits: [*Mat] / *Sto x2) -9/Storage (discovered 1 exit: Gar) History --------- Turn | Location | Event 4 | -11/Scrapyard | Discovered new exit (range 15) 63 | -11/Scrapyard | Entered Materials 122 | -10/Materials | Met 8R-AWN 281 | -10/Materials | Discovered new exit (range 10) 312 | -10/Materials | Build established: Mutant 575 | -10/Materials | Discovered new exit (range 5) 619 | -10/Materials | Entered Mines 621 | -10/Mines | Followed 8R-AWN into the Mines 653 | -10/Mines | Assembled infested the area 655 | -10/Mines | Joined a pair of Derelicts in attacking an 0b10 outpost 825 | -10/Mines | Core integrity fell below 50% 933 | -10/Mines | Discovered new exit (range 5) 1037 | -10/Mines | Discovered new exit (range 7) 1108 | -10/Mines | Found a damaged Exp. Sensor Array with a note attached 1114 | -10/Mines | Found Prototype Device 1117 | -10/Mines | Identified Exp. Sensor Array 1198 | -10/Mines | Assisted by bots powering up and referring to "LRC-V3" 1201 | -10/Mines | Entered Materials 1201 | -9/Materials | Accompanied by 4 allies 1201 | -9/Materials | Evolved 2 slots: Propulsion x1, Utility x1 1207 | -9/Materials | Led the pair of lost Derelicts to an unsafe place 1304 | -9/Materials | Discovered new exit (range 16) 1404 | -9/Materials | Discovered new exit (range 3) 1470 | -9/Materials | Discovered new exit (range 5) 1555 | -9/Materials | Entered Storage 1555 | -9/Storage | Accompanied by 1 ally 1936 | -9/Storage | Build established: Scavenger-Mutant 1946 | -9/Storage | Core integrity fell below 50% 1970 | -9/Storage | Identified exit to Garrison 2000 | -9/Storage | Garrison activated, responded to threat 2028 | -9/Storage | Core integrity fell below 20% 2034 | -9/Storage | Destroyed by S-10 Pest with Light Assault Rifle Last Messages --------------- 02007_ Dropped Imp. Light Cannon. 02009_ K-01 Serf collects debris. 02009_ Acquired Imp. Light Cannon. 02009_ Lgt. Nuclear Core destroyed. 02010_ S-10 Pest destroyed. 02012_ Overheating: Energy bleed (-18). 02012_ K-01 Serf collects debris. 02015_ Critical hit (Burn: +37). 02016_ K-01 Serf destroyed. 02016_ Drone Bay destroyed. 02017_ Extracted 8 matter. 02018_ Cmb. Airjet destroyed. 02019_ Imp. Light Cannon broken. 02019_ Overheating: Short circuit. 02020_ ALERT: Hostiles spotted, dispatching reinforcements to Terminal S002. 02022_ Acquired 1 matter. 02026_ Broken Imp. Light Cannon destroyed. 02032_ Drone Bay destroyed. 02032_ Critical hit (Burn: +37). Map ----- +----------------------------------------------------+ | ????????????????????????????????????#! !!#T##????? | | ????????????????????????????????????#!!] #????? | | ????????????????????????????????????# !# #????? | | ???????????????????????????????########### #????? | | ???????????????????????????#####%%*########+###### | | ???????????????????????????# %=!%*%=%!! !* | | ???????????????????????????# ###=![###### "###### | | ???????????????????????????# ####+#####?#####????? | | ???????????????????????????# # #??????????? | | ???????????????????????????# # #??????????? | | ?????????????????????????### # """" #??????????? | | ?????????????????????????# # "??"" #??????????" | | ?????????????????????????# + "???"" #?????????## | | ?????????????????????????# # ""???" #?????????#T | | ?????????????????????????# # ""??" #?????????## | | ?????????????????????????# ! # """" #??????????# | | ?????????????????????????#!%!# #??????????# | | ?????????????????????????# ##########??????????# | | ?????????????????????????# #???????????????????# | | ???????????????????????### #???????????????????+ | | ????????????????######## # a#???????????????????# | | ????????????????# #! #?##????????????????# | | ????????????????# """ #%* ##T#??????########### | | ????????????????# "G" #=[ # "??????# ## | | ????????????????# ">" #%= # "??????# """ =#% | | ????????????????# %g @!! + "??????# """ %%+[ | | ????????????????#=s[g # ####??????# """ !#[ | | ????# #########=Y!! # #?????????# #% | | ????# % %%%%*+%[s! # #?????????# """ ## | | ????# #########*Y # #?????????# """ #? | | ????????????????########## #?????????# """ #? | | ?????????????????????????#####?????????# #? | | ???????????????????????????????????????###### ###? | | ????????????????????????????????????????????##???? | | ?????????????????????????????????????????????????? | | ?????????????????????????????????????????????????? | | ?????????????????????????????????????????????????? | | ?????????????????????????????????????????????????? | | ?????????????????????????????????????????????????? | | ?????????????????????????????????????????????????? | | ?????????????????????????????????????????????????? | | ????????????????????????????????????############## | | ????????????????????????????????????? | | ???????????????????????????????????###### | | ???????????????????????????????????# % | | ???????????????????????????????????# % | | ???????????????????????????????????+ = =[=!= | | ???????????????????????????????????# !% [%=% % % | | ???????????????????????????????????# ######### | | ???????????????????????????????????## ##??????## | +----------------------------------------------------+ Best States ------------- Heat Dissipation 28 Energy Generation 14 Energy Capacity 250 Matter Stores 300 Matter Capacity 300 Sight Range 16 Robot Scan Range 20 Terrain Scan Density 85 ECM Strength 1 Evasion (%) 55 Item Schematics ----------------- None Robot Schematics ------------------ None Fabricated ------------ Nothing Alien Tech Used ----------------- None Achievements -------------- Backstab The More The Merrier Challenges ------------ None Game ------ Seed StasisRegenerativeCanceller Manual? 0 Play Time 00:22:18 Cumulative 1.3 hours Start 2024.04.28 @ 22:14:35 End 2024.04.28 @ 22:38:31 Sessions 1 Manual Loads 0 Difficulty Rogue Special Mode None Game No. 5 Rogue 5 Adventurer 0 Explorer 0 Win Type - Total 0 Types 0/0/0/0/0/0/0/0/0 Lore% 0 Gallery% 7 Achievement% 7 Wizard Run 0 Options --------- Layout 1 ASCII 0 Keyboard 0 Movement Mouse Keybinds 0 Fullscreen 2 Font 32/SmallcapsGlow Map View 50x35 Zoom Use 0% Tactical HUD 1 Map Filters NONE Filters NONE Steam 1 RUN: b2a257d8-6c7a-4c52-80b4-b6d6693d80e1